[Event "Early-Titled-Tuesday-Blitz-September-12-2023"]
[Site "Chess.com"]
[Date "2023.09.12"]
[Round "3"]
[White "BahadirOzen"]
[Black "MasterKroket"]
[Result "0-1"]
[WhiteElo "2794"]
[BlackElo "2425"]
[TimeControl "180+1"]
[EndTime "8:29:08 PDT"]
[Termination "MasterKroket won by resignation"]

1. g3 {[%clk 0:03:00.9]} 1... d5 {[%clk 0:02:59.7]} 2. Nf3 {[%clk 0:03:00]} 2...
c6 {[%clk 0:03:00]} 3. Bg2 {[%clk 0:03:00.5]} 3... h6 {[%clk 0:02:59.2]} 4. O-O
{[%clk 0:02:55.2]} 4... Bf5 {[%clk 0:02:59.1]} 5. d3 {[%clk 0:02:53.5]} 5... e6
{[%clk 0:02:59.4]} 6. c4 {[%clk 0:02:47.7]} 6... Nf6 {[%clk 0:02:56.9]} 7. Qb3
{[%clk 0:02:42.2]} 7... Qb6 {[%clk 0:02:56.7]} 8. Qc2 {[%clk 0:02:40.9]} 8...
Be7 {[%clk 0:02:53.3]} 9. cxd5 {[%clk 0:02:37.8]} 9... exd5 {[%clk 0:02:52.3]}
10. Nc3 {[%clk 0:02:38]} 10... Bh7 {[%clk 0:02:47.5]} 11. e4 {[%clk 0:02:37.3]}
11... dxe4 {[%clk 0:02:38.9]} 12. dxe4 {[%clk 0:02:38.2]} 12... O-O {[%clk
0:02:33.9]} 13. Be3 {[%clk 0:02:36.8]} 13... Qc7 {[%clk 0:02:31.3]} 14. h3
{[%clk 0:02:36]} 14... Bb4 {[%clk 0:02:28.8]} 15. Nd4 {[%clk 0:02:26.8]} 15...
Re8 {[%clk 0:02:24.4]} 16. Nf5 {[%clk 0:02:08.5]} 16... Nbd7 {[%clk 0:02:15.6]}
17. Bf4 {[%clk 0:01:53.2]} 17... Ne5 {[%clk 0:02:15.3]} 18. Nb5 {[%clk
0:01:52.8]} 18... Qb8 {[%clk 0:02:01.5]} 19. Nbd4 {[%clk 0:01:37.7]} 19... Ba5
{[%clk 0:01:30.1]} 20. Rad1 {[%clk 0:01:30.6]} 20... Bc7 {[%clk 0:01:29.4]} 21.
Bc1 {[%clk 0:01:26]} 21... Ng6 {[%clk 0:00:59.4]} 22. f4 {[%clk 0:01:21]} 22...
Ne7 {[%clk 0:00:59.4]} 23. g4 {[%clk 0:00:53.8]} 23... Nxf5 {[%clk 0:00:46.8]}
24. exf5 {[%clk 0:00:49.2]} 24... Bb6 {[%clk 0:00:39.8]} 25. Kh1 {[%clk
0:00:48.9]} 25... Qc7 {[%clk 0:00:39.2]} 26. g5 {[%clk 0:00:44.9]} 26... Nh5
{[%clk 0:00:33.3]} 27. g6 {[%clk 0:00:41.6]} 27... Ng3+ {[%clk 0:00:31.7]} 28.
Kh2 {[%clk 0:00:37.4]} 28... Nxf1+ {[%clk 0:00:31.2]} 29. Bxf1 {[%clk
0:00:35.4]} 29... Rad8 {[%clk 0:00:26.2]} 30. gxh7+ {[%clk 0:00:35.5]} 30...
Kxh7 {[%clk 0:00:27.1]} 31. Nf3 {[%clk 0:00:29.6]} 31... Rxd1 {[%clk 0:00:23.8]}
32. Qxd1 {[%clk 0:00:30.5]} 32... Be3 {[%clk 0:00:23.7]} 33. Ne5 {[%clk
0:00:22.8]} 33... Rxe5 {[%clk 0:00:20.1]} 34. fxe5 {[%clk 0:00:22.7]} 34...
Qxe5+ {[%clk 0:00:21]} 35. Kh1 {[%clk 0:00:21.5]} 35... Bxc1 {[%clk 0:00:15.7]}
36. Qxc1 {[%clk 0:00:22.4]} 36... Qxf5 {[%clk 0:00:13.2]} 37. Qd1 {[%clk
0:00:22.1]} 37... g6 {[%clk 0:00:12.7]} 38. Bg2 {[%clk 0:00:21.4]} 38... Qe5
{[%clk 0:00:11.6]} 39. Qd2 {[%clk 0:00:20.5]} 39... Kg7 {[%clk 0:00:11.6]} 40.
a3 {[%clk 0:00:20.2]} 40... c5 {[%clk 0:00:10.7]} 41. Bxb7 {[%clk 0:00:19.3]}
41... g5 {[%clk 0:00:09.9]} 42. Bg2 {[%clk 0:00:19.8]} 42... h5 {[%clk 0:00:09]}
43. Qc3 {[%clk 0:00:15.8]} 43... Kf6 {[%clk 0:00:08.9]} 44. Kg1 {[%clk
0:00:16.1]} 44... Qxc3 {[%clk 0:00:08.9]} 45. bxc3 {[%clk 0:00:17]} 45... Ke5
{[%clk 0:00:09.5]} 46. Kf2 {[%clk 0:00:17.7]} 46... Kf4 {[%clk 0:00:09.7]} 47.
Bc6 {[%clk 0:00:15.2]} 47... f5 {[%clk 0:00:09.8]} 48. Be8 {[%clk 0:00:14.6]}
48... h4 {[%clk 0:00:09.5]} 49. Bc6 {[%clk 0:00:15]} 49... g4 {[%clk 0:00:09.8]}
50. hxg4 {[%clk 0:00:15.4]} 50... fxg4 {[%clk 0:00:10.7]} 51. c4 {[%clk
0:00:14.3]} 51... a5 {[%clk 0:00:08.8]} 52. a4 {[%clk 0:00:11.8]} 52... g3+
{[%clk 0:00:06.3]} 53. Kg2 {[%clk 0:00:11.8]} 53... Ke5 {[%clk 0:00:06.9]} 54.
Kh3 {[%clk 0:00:11.4]} 54... Kd4 {[%clk 0:00:06.7]} 55. Bd5 {[%clk 0:00:11.9]}
55... Kc3 {[%clk 0:00:05.4]} 56. Kg2 {[%clk 0:00:10.2]} 56... Kb4 {[%clk
0:00:05.3]} 57. Kh3 {[%clk 0:00:09.2]} 57... Kxa4 {[%clk 0:00:04.7]} 58. Kxh4
{[%clk 0:00:09.9]} 58... g2 {[%clk 0:00:05.1]} 59. Bxg2 {[%clk 0:00:09.6]} 59...
Kb3 {[%clk 0:00:04.6]} 60. Bc6 {[%clk 0:00:07.8]} 60... a4 {[%clk 0:00:04.2]}
61. Bxa4+ {[%clk 0:00:07.2]} 61... Kxa4 {[%clk 0:00:05.1]} 62. Kg3 {[%clk
0:00:07.9]} 62... Kb4 {[%clk 0:00:06]} 63. Kf2 {[%clk 0:00:08.8]} 63... Kxc4
{[%clk 0:00:06.9]} 64. Ke2 {[%clk 0:00:09.6]} 64... Kb3 {[%clk 0:00:07.3]} 65.
Kd1 {[%clk 0:00:10.5]} 65... Kc3 {[%clk 0:00:07.4]} 66. Kc1 {[%clk 0:00:11.4]}
66... c4 {[%clk 0:00:07.8]} 67. Kb1 {[%clk 0:00:11.9]} 67... Kd2 {[%clk
0:00:08.2]} 0-1

[Event "Early-Titled-Tuesday-Blitz-September-12-2023"]
[Site "Chess.com"]
[Date "2023.09.12"]
[Round "3"]
[White "DavidLana1987"]
[Black "GiorgianBarbosa"]
[Result "1/2-1/2"]
[WhiteElo "2616"]
[BlackElo "2455"]
[TimeControl "180+1"]
[EndTime "8:29:08 PDT"]
[Termination "Game drawn - insufficient material"]

1. e4 {[%clk 0:03:00.9]} 1... c5 {[%clk 0:02:59.4]} 2. Nf3 {[%clk 0:03:00.2]}
2... g6 {[%clk 0:03:00.2]} 3. d4 {[%clk 0:03:00.3]} 3... cxd4 {[%clk 0:03:01.1]}
4. Qxd4 {[%clk 0:03:01]} 4... Nf6 {[%clk 0:03:01.3]} 5. Nc3 {[%clk 0:03:01.6]}
5... Nc6 {[%clk 0:03:00.7]} 6. Qa4 {[%clk 0:03:02.2]} 6... d6 {[%clk 0:03:01.6]}
7. e5 {[%clk 0:03:00.7]} 7... dxe5 {[%clk 0:03:02.5]} 8. Nxe5 {[%clk 0:03:01.4]}
8... Bd7 {[%clk 0:03:03.4]} 9. Nxd7 {[%clk 0:03:01.5]} 9... Nxd7 {[%clk
0:03:04.3]} 10. Bb5 {[%clk 0:03:01.8]} 10... Bg7 {[%clk 0:03:04.1]} 11. Be3
{[%clk 0:03:01.9]} 11... O-O {[%clk 0:03:04]} 12. Rd1 {[%clk 0:03:02.1]} 12...
Qc8 {[%clk 0:02:58.1]} 13. Nd5 {[%clk 0:03:01.9]} 13... Re8 {[%clk 0:02:53.9]}
14. O-O {[%clk 0:02:57.6]} 14... Nb6 {[%clk 0:02:41.6]} 15. Bxb6 {[%clk
0:02:53]} 15... axb6 {[%clk 0:02:42.5]} 16. Qe4 {[%clk 0:02:50.8]} 16... Rxa2
{[%clk 0:02:32.8]} 17. Bxc6 {[%clk 0:02:47.5]} 17... bxc6 {[%clk 0:02:33.6]} 18.
Nxe7+ {[%clk 0:02:47.3]} 18... Kf8 {[%clk 0:02:14.9]} 19. Nxc8 {[%clk
0:02:38.5]} 19... Rxe4 {[%clk 0:02:14.2]} 20. Nxb6 {[%clk 0:02:38.9]} 20... Rxb2
{[%clk 0:02:10.2]} 21. Nd7+ {[%clk 0:02:38.5]} 21... Ke7 {[%clk 0:02:05.2]} 22.
Nc5 {[%clk 0:02:39.2]} 22... Re2 {[%clk 0:02:01.4]} 23. Rd7+ {[%clk 0:02:33.1]}
23... Kf6 {[%clk 0:01:38.9]} 24. Rd6+ {[%clk 0:02:27.8]} 24... Kg5 {[%clk
0:01:35.5]} 25. Rxc6 {[%clk 0:02:21]} 25... Rbxc2 {[%clk 0:01:27.5]} 26. Ne4+
{[%clk 0:02:21.1]} 26... Kh6 {[%clk 0:01:25.5]} 27. Rxc2 {[%clk 0:02:20.2]}
27... Rxc2 {[%clk 0:01:26.4]} 28. g3 {[%clk 0:02:20.9]} 28... Bd4 {[%clk
0:01:21.2]} 29. Nd6 {[%clk 0:02:18.7]} 29... f5 {[%clk 0:01:16.4]} 30. Kg2
{[%clk 0:02:18.1]} 30... Kg7 {[%clk 0:01:13.5]} 31. h3 {[%clk 0:02:15.7]} 31...
h5 {[%clk 0:01:12.7]} 32. g4 {[%clk 0:02:10.1]} 32... fxg4 {[%clk 0:00:57.3]}
33. hxg4 {[%clk 0:02:09.9]} 33... hxg4 {[%clk 0:00:57.9]} 34. Ne4 {[%clk
0:02:10]} 34... Re2 {[%clk 0:00:49.7]} 35. Ng3 {[%clk 0:02:07.2]} 35... Rb2
{[%clk 0:00:48.9]} 36. Ne4 {[%clk 0:02:04.3]} 36... Kf7 {[%clk 0:00:44]} 37. Kg3
{[%clk 0:02:01.3]} 37... Ke6 {[%clk 0:00:41.8]} 38. Kxg4 {[%clk 0:01:58.5]}
38... Kd5 {[%clk 0:00:40.4]} 39. f3 {[%clk 0:01:58.2]} 39... Rg2+ {[%clk
0:00:33.2]} 40. Kh3 {[%clk 0:01:58.5]} 40... Rg1 {[%clk 0:00:30.5]} 41. Rxg1
{[%clk 0:01:52.4]} 41... Bxg1 {[%clk 0:00:28.7]} 42. Kg4 {[%clk 0:01:53.3]}
42... Ke5 {[%clk 0:00:28.2]} 43. Ng5 {[%clk 0:01:50.9]} 43... Kf6 {[%clk
0:00:24.5]} 44. Ne4+ {[%clk 0:01:50.5]} 44... Kg7 {[%clk 0:00:23.8]} 45. Nc3
{[%clk 0:01:50.5]} 45... Ba7 {[%clk 0:00:24]} 46. Ne2 {[%clk 0:01:51]} 46... Bb8
{[%clk 0:00:24.4]} 47. Nd4 {[%clk 0:01:51.1]} 47... Ba7 {[%clk 0:00:24.3]} 48.
Nc6 {[%clk 0:01:51]} 48... Bb6 {[%clk 0:00:23.8]} 49. Ne5 {[%clk 0:01:50.3]}
49... Ba7 {[%clk 0:00:20.1]} 50. Nc4 {[%clk 0:01:49.7]} 50... Kh7 {[%clk
0:00:20]} 51. Nd6 {[%clk 0:01:49.1]} 51... Bc5 {[%clk 0:00:20.3]} 52. Nf7 {[%clk
0:01:46.8]} 52... Bb6 {[%clk 0:00:19.9]} 53. Ng5+ {[%clk 0:01:47.3]} 53... Kg7
{[%clk 0:00:19.1]} 54. Ne6+ {[%clk 0:01:47.2]} 54... Kh7 {[%clk 0:00:19.4]} 55.
Ng5+ {[%clk 0:01:48.1]} 55... Kg7 {[%clk 0:00:18.7]} 56. Nh3 {[%clk 0:01:49]}
56... Kh7 {[%clk 0:00:18.6]} 57. Kf4 {[%clk 0:01:48.2]} 57... Ba7 {[%clk
0:00:17.1]} 58. Ke5 {[%clk 0:01:48]} 58... Bb8+ {[%clk 0:00:17.2]} 59. Kf6
{[%clk 0:01:47.4]} 59... Ba7 {[%clk 0:00:17.7]} 60. Kg5 {[%clk 0:01:40.9]} 60...
Kg7 {[%clk 0:00:17.4]} 61. Kg4 {[%clk 0:01:40.1]} 61... Kh6 {[%clk 0:00:17.3]}
62. Ng5 {[%clk 0:01:39.9]} 62... Kg7 {[%clk 0:00:17.3]} 63. Ne6+ {[%clk
0:01:40]} 63... Kh6 {[%clk 0:00:15.2]} 64. Nf4 {[%clk 0:01:40.9]} 64... Be3
{[%clk 0:00:12.8]} 65. Nd3 {[%clk 0:01:40.9]} 65... Ba7 {[%clk 0:00:13.5]} 66.
Nb4 {[%clk 0:01:40.8]} 66... Bc5 {[%clk 0:00:07.3]} 67. Nd3 {[%clk 0:01:39.3]}
67... Be3 {[%clk 0:00:07.4]} 68. Ne5 {[%clk 0:01:36.6]} 68... Ba7 {[%clk
0:00:08.3]} 69. Nf7+ {[%clk 0:01:36]} 69... Kg7 {[%clk 0:00:08.3]} 70. Ng5
{[%clk 0:01:36.9]} 70... Kh6 {[%clk 0:00:09.1]} 71. Nh3 {[%clk 0:01:36.6]} 71...
Bb8 {[%clk 0:00:09.3]} 72. Ng5 {[%clk 0:01:35.6]} 72... Ba7 {[%clk 0:00:10.2]}
73. Nf7+ {[%clk 0:01:33]} 73... Kg7 {[%clk 0:00:09.4]} 74. Nd8 {[%clk
0:01:33.5]} 74... Kh6 {[%clk 0:00:10.3]} 75. Kf4 {[%clk 0:01:33.1]} 75... Bg1
{[%clk 0:00:11.2]} 76. Ke4 {[%clk 0:01:33.1]} 76... Bb6 {[%clk 0:00:11.7]} 77.
Kd5 {[%clk 0:01:33.3]} 77... Bg1 {[%clk 0:00:12.6]} 78. Ke6 {[%clk 0:01:33.4]}
78... Bb6 {[%clk 0:00:12.3]} 79. Nf7+ {[%clk 0:01:32]} 79... Kh5 {[%clk
0:00:12.6]} 80. Ke5 {[%clk 0:01:31.9]} 80... Bc7+ {[%clk 0:00:12.4]} 81. Ke4
{[%clk 0:01:32.1]} 81... g5 {[%clk 0:00:12.3]} 82. Kf5 {[%clk 0:01:30]} 82...
Bf4 {[%clk 0:00:12.6]} 83. Nd8 {[%clk 0:01:30]} 83... Kh4 {[%clk 0:00:12.6]} 84.
Ne6 {[%clk 0:01:29]} 84... Kg3 {[%clk 0:00:13.2]} 85. Ke4 {[%clk 0:01:29.3]}
85... g4 {[%clk 0:00:12.4]} 86. fxg4 {[%clk 0:01:25.5]} 86... Kxg4 {[%clk
0:00:12.4]} 1/2-1/2

[Event "Early-Titled-Tuesday-Blitz-September-12-2023"]
[Site "Chess.com"]
[Date "2023.09.12"]
[Round "3"]
[White "splendidkid"]
[Black "amintabatabaei"]
[Result "0-1"]
[WhiteElo "2751"]
[BlackElo "3050"]
[TimeControl "180+1"]
[EndTime "8:29:11 PDT"]
[Termination "amintabatabaei won by checkmate"]

1. d4 {[%clk 0:03:00.9]} 1... Nf6 {[%clk 0:02:56.9]} 2. c4 {[%clk 0:03:00.3]}
2... e6 {[%clk 0:02:56.5]} 3. Nf3 {[%clk 0:02:53.5]} 3... d5 {[%clk 0:02:56.6]}
4. Nc3 {[%clk 0:02:53.1]} 4... c6 {[%clk 0:02:54.6]} 5. Bg5 {[%clk 0:02:51.9]}
5... h6 {[%clk 0:02:53.8]} 6. Bh4 {[%clk 0:02:51.3]} 6... dxc4 {[%clk
0:02:53.2]} 7. a4 {[%clk 0:02:51.1]} 7... Bb4 {[%clk 0:02:49.6]} 8. e3 {[%clk
0:02:44.5]} 8... b5 {[%clk 0:02:48.6]} 9. Be2 {[%clk 0:02:45]} 9... Bb7 {[%clk
0:02:48.1]} 10. O-O {[%clk 0:02:45.6]} 10... a6 {[%clk 0:02:47.8]} 11. Ne5
{[%clk 0:02:44.8]} 11... Nbd7 {[%clk 0:02:39.2]} 12. f4 {[%clk 0:02:41.6]} 12...
Be7 {[%clk 0:02:35.6]} 13. Bf3 {[%clk 0:02:30.9]} 13... O-O {[%clk 0:02:29.1]}
14. Nxc6 {[%clk 0:01:55.8]} 14... Bxc6 {[%clk 0:02:29.5]} 15. Bxc6 {[%clk
0:01:56.7]} 15... b4 {[%clk 0:02:30.2]} 16. Bxa8 {[%clk 0:01:31.8]} 16... bxc3
{[%clk 0:02:30.3]} 17. Bf3 {[%clk 0:01:32.7]} 17... cxb2 {[%clk 0:02:30.7]} 18.
Rb1 {[%clk 0:01:32.8]} 18... c3 {[%clk 0:02:30.9]} 19. Qb3 {[%clk 0:01:32.9]}
19... Qa5 {[%clk 0:02:25.1]} 20. Be1 {[%clk 0:01:27]} 20... Bb4 {[%clk
0:02:08.1]} 21. Rf2 {[%clk 0:01:13.1]} 21... c2 {[%clk 0:01:13.1]} 22. Rxc2
{[%clk 0:01:11.8]} 22... Bxe1 {[%clk 0:01:13.5]} 23. Rbxb2 {[%clk 0:01:12.7]}
23... Rb8 {[%clk 0:01:05.5]} 24. Qc4 {[%clk 0:01:01.3]} 24... Bb4 {[%clk
0:00:53.3]} 25. g3 {[%clk 0:00:36.7]} 25... Qb6 {[%clk 0:00:28.6]} 26. a5 {[%clk
0:00:27.3]} 26... Qxa5 {[%clk 0:00:26.5]} 27. Ra2 {[%clk 0:00:27.5]} 27... Qb5
{[%clk 0:00:17.4]} 28. Rxa6 {[%clk 0:00:27.3]} 28... Qxc4 {[%clk 0:00:18.1]} 29.
Rxc4 {[%clk 0:00:28.2]} 29... Bd2 {[%clk 0:00:18.9]} 30. e4 {[%clk 0:00:20.5]}
30... Nb6 {[%clk 0:00:15.9]} 31. Rc7 {[%clk 0:00:08.8]} 31... Be3+ {[%clk
0:00:16.3]} 32. Kg2 {[%clk 0:00:09.1]} 32... Bxd4 {[%clk 0:00:17.1]} 33. h4
{[%clk 0:00:05]} 33... e5 {[%clk 0:00:11.9]} 34. f5 {[%clk 0:00:04.8]} 34... h5
{[%clk 0:00:12.3]} 35. Ra2 {[%clk 0:00:02.3]} 35... Nbd7 {[%clk 0:00:11.9]} 36.
Rcc2 {[%clk 0:00:02.3]} 36... Nc5 {[%clk 0:00:11.8]} 37. Re2 {[%clk 0:00:03]}
37... Rb1 {[%clk 0:00:09.9]} 38. Kh3 {[%clk 0:00:02.4]} 38... Rb3 {[%clk
0:00:09.2]} 39. Kg2 {[%clk 0:00:02.7]} 39... Rb7 {[%clk 0:00:08]} 40. Ra8+
{[%clk 0:00:03]} 40... Kh7 {[%clk 0:00:08.4]} 41. Raa2 {[%clk 0:00:03.4]} 41...
Rd7 {[%clk 0:00:08.6]} 42. Ra5 {[%clk 0:00:03.5]} 42... Rc7 {[%clk 0:00:08.9]}
43. Rb5 {[%clk 0:00:03.7]} 43... g6 {[%clk 0:00:08.6]} 44. fxg6+ {[%clk
0:00:03.8]} 44... Kxg6 {[%clk 0:00:09.5]} 45. Rb8 {[%clk 0:00:04.3]} 45... Kg7
{[%clk 0:00:09.2]} 46. Rd8 {[%clk 0:00:04]} 46... Ne6 {[%clk 0:00:09.3]} 47. Rb8
{[%clk 0:00:03.8]} 47... Rc3 {[%clk 0:00:09.4]} 48. Ra8 {[%clk 0:00:02.7]} 48...
Bc5 {[%clk 0:00:09.2]} 49. Raa2 {[%clk 0:00:02.8]} 49... Nd4 {[%clk 0:00:09.1]}
50. Rf2 {[%clk 0:00:03.5]} 50... Rc1 {[%clk 0:00:07.8]} 51. Ra7 {[%clk
0:00:02.1]} 51... Nb5 {[%clk 0:00:06.4]} 52. Ra5 {[%clk 0:00:01.6]} 52... Bxf2
{[%clk 0:00:06.6]} 53. Kxf2 {[%clk 0:00:02.3]} 53... Rc2+ {[%clk 0:00:05.2]} 54.
Ke3 {[%clk 0:00:02]} 54... Nd4 {[%clk 0:00:04.8]} 55. Bd1 {[%clk 0:00:02.5]}
55... Rc3+ {[%clk 0:00:04.8]} 56. Kd2 {[%clk 0:00:01.9]} 56... Nxe4+ {[%clk
0:00:05.2]} 57. Ke1 {[%clk 0:00:02.8]} 57... Rxg3 {[%clk 0:00:05.5]} 58. Rxe5
{[%clk 0:00:03.1]} 58... Rg1# {[%clk 0:00:05.4]} 0-1

[Event "Early-Titled-Tuesday-Blitz-September-12-2023"]
[Site "Chess.com"]
[Date "2023.09.12"]
[Round "3"]
[White "Zurability"]
[Black "YEIKO2017"]
[Result "0-1"]
[WhiteElo "2788"]
[BlackElo "2521"]
[TimeControl "180+1"]
[EndTime "8:29:12 PDT"]
[Termination "YEIKO2017 won by resignation"]

1. Nf3 {[%clk 0:03:00.9]} 1... c5 {[%clk 0:02:58.1]} 2. c3 {[%clk 0:02:54]} 2...
g6 {[%clk 0:02:56.2]} 3. d4 {[%clk 0:02:54.5]} 3... cxd4 {[%clk 0:02:56.5]} 4.
cxd4 {[%clk 0:02:55.4]} 4... Bg7 {[%clk 0:02:56.6]} 5. Nc3 {[%clk 0:02:55.4]}
5... d5 {[%clk 0:02:56.5]} 6. Bf4 {[%clk 0:02:54.8]} 6... Nf6 {[%clk 0:02:54.3]}
7. e3 {[%clk 0:02:55.2]} 7... O-O {[%clk 0:02:53.3]} 8. Bd3 {[%clk 0:02:51.7]}
8... Bf5 {[%clk 0:02:49.5]} 9. Bxf5 {[%clk 0:02:48.4]} 9... gxf5 {[%clk
0:02:50.4]} 10. O-O {[%clk 0:02:48.8]} 10... e6 {[%clk 0:02:47.1]} 11. Ne5
{[%clk 0:02:41.7]} 11... Nbd7 {[%clk 0:02:33.3]} 12. Nd3 {[%clk 0:02:38.2]}
12... a6 {[%clk 0:02:25.9]} 13. Rc1 {[%clk 0:02:33.6]} 13... Rc8 {[%clk
0:02:24.2]} 14. Qb3 {[%clk 0:02:30.9]} 14... Qb6 {[%clk 0:02:18]} 15. Qxb6
{[%clk 0:02:28.8]} 15... Nxb6 {[%clk 0:02:18]} 16. Nc5 {[%clk 0:02:29.1]} 16...
Nc4 {[%clk 0:02:06.4]} 17. b3 {[%clk 0:02:21.8]} 17... Nd2 {[%clk 0:01:46.7]}
18. Rfd1 {[%clk 0:02:18.8]} 18... Nde4 {[%clk 0:01:41.2]} 19. N3a4 {[%clk
0:01:44.2]} 19... b5 {[%clk 0:01:36]} 20. Nb6 {[%clk 0:01:38.9]} 20... Rc6
{[%clk 0:01:29.4]} 21. Nxe4 {[%clk 0:01:38.9]} 21... Rxb6 {[%clk 0:01:23.4]} 22.
Bc7 {[%clk 0:01:27.4]} 22... Rb7 {[%clk 0:01:14.9]} 23. Nd6 {[%clk 0:01:27.7]}
23... Ra7 {[%clk 0:01:12]} 24. Rc6 {[%clk 0:01:27]} 24... Ne4 {[%clk 0:01:08.4]}
25. f3 {[%clk 0:01:21.2]} 25... Rxc7 {[%clk 0:00:58.5]} 26. Rxc7 {[%clk
0:01:15.9]} 26... Nxd6 {[%clk 0:00:58.8]} 27. Rc6 {[%clk 0:01:16]} 27... Rd8
{[%clk 0:00:57.3]} 28. Rxa6 {[%clk 0:01:15.1]} 28... f4 {[%clk 0:00:57.9]} 29.
exf4 {[%clk 0:00:55.6]} 29... Nf5 {[%clk 0:00:57.4]} 30. a4 {[%clk 0:00:47.8]}
30... b4 {[%clk 0:00:46]} 31. Kf2 {[%clk 0:00:38.1]} 31... Bxd4+ {[%clk
0:00:44.9]} 32. Ke2 {[%clk 0:00:36.8]} 32... Bc3 {[%clk 0:00:44.3]} 33. Kd3
{[%clk 0:00:33.2]} 33... Rc8 {[%clk 0:00:38.5]} 34. Rc1 {[%clk 0:00:25.7]} 34...
Kg7 {[%clk 0:00:31.6]} 35. a5 {[%clk 0:00:24.4]} 35... Kf6 {[%clk 0:00:28.8]}
36. Rb6 {[%clk 0:00:20.6]} 36... Ra8 {[%clk 0:00:28]} 37. a6 {[%clk 0:00:21]}
37... Nd4 {[%clk 0:00:24.4]} 38. Rxc3 {[%clk 0:00:14.7]} 38... bxc3 {[%clk
0:00:25.3]} 39. Kxd4 {[%clk 0:00:15.1]} 39... c2 {[%clk 0:00:25.9]} 40. Rc6
{[%clk 0:00:15.1]} 40... Rxa6 {[%clk 0:00:26.3]} 41. Rxc2 {[%clk 0:00:15.7]}
41... Ra1 {[%clk 0:00:24.4]} 42. Rb2 {[%clk 0:00:13.3]} 42... Ke7 {[%clk
0:00:22.5]} 43. b4 {[%clk 0:00:11.8]} 43... Kd6 {[%clk 0:00:23]} 44. b5 {[%clk
0:00:12.4]} 44... Rd1+ {[%clk 0:00:23.2]} 45. Ke3 {[%clk 0:00:09.1]} 45... Kc7
{[%clk 0:00:22.7]} 46. Rc2+ {[%clk 0:00:03.9]} 46... Kb7 {[%clk 0:00:21.9]} 47.
Rc6 {[%clk 0:00:03.8]} 47... Rb1 {[%clk 0:00:19.2]} 48. Rd6 {[%clk 0:00:03.7]}
48... Kc7 {[%clk 0:00:18.7]} 49. Rc6+ {[%clk 0:00:04.2]} 49... Kb7 {[%clk
0:00:18.2]} 50. Kd4 {[%clk 0:00:04.7]} 50... Rxb5 {[%clk 0:00:17]} 51. Rc2
{[%clk 0:00:05.4]} 51... Rb1 {[%clk 0:00:10.6]} 52. Ke5 {[%clk 0:00:05.4]} 52...
Rh1 {[%clk 0:00:10.6]} 53. g3 {[%clk 0:00:04.7]} 53... Rf1 {[%clk 0:00:09.6]}
54. Kf6 {[%clk 0:00:04.8]} 54... Rxf3 {[%clk 0:00:08.9]} 55. Re2 {[%clk
0:00:02.8]} 55... d4 {[%clk 0:00:06.5]} 56. Kxf7 {[%clk 0:00:03.3]} 56... d3
{[%clk 0:00:07]} 57. Rd2 {[%clk 0:00:03.9]} 57... e5 {[%clk 0:00:06.7]} 58. Kg7
{[%clk 0:00:04.3]} 58... e4 {[%clk 0:00:07.1]} 59. Rd1 {[%clk 0:00:02.7]} 59...
Kc6 {[%clk 0:00:06.9]} 60. Kxh7 {[%clk 0:00:02.3]} 60... Kd5 {[%clk 0:00:07.1]}
61. Kg6 {[%clk 0:00:02.9]} 61... Kd4 {[%clk 0:00:07.6]} 62. f5 {[%clk
0:00:03.5]} 62... e3 {[%clk 0:00:08.3]} 63. f6 {[%clk 0:00:04.1]} 63... e2
{[%clk 0:00:08.9]} 64. Re1 {[%clk 0:00:04.3]} 64... d2 {[%clk 0:00:08.8]} 65.
Rxe2 {[%clk 0:00:04.7]} 65... d1=Q {[%clk 0:00:09.2]} 66. Re8 {[%clk 0:00:05]}
66... Qd3+ {[%clk 0:00:09.2]} 67. Kg7 {[%clk 0:00:05.3]} 67... Qf5 {[%clk
0:00:09.4]} 68. Rd8+ {[%clk 0:00:05.1]} 68... Kc5 {[%clk 0:00:09.5]} 69. Rf8
{[%clk 0:00:06]} 69... Qg5+ {[%clk 0:00:09]} 70. Kh7 {[%clk 0:00:06.6]} 70...
Rxf6 {[%clk 0:00:08.3]} 0-1